fUST/lending_fUST_20250226
["ID","MTS","AMOUNT","RATE_DAILY","PERIOD"]
[354505194,1740541887737,-808.12,0.00043013,2]
[354505195,1740541887747,-660.19,0.00043013,2]
[354505196,1740541887757,-1062.27,0.00043013,2]
[354505197,1740541887767,-761.72,0.00043013,2]
[354505198,1740541887777,-587.82,0.00043013,2]
[354505199,1740541887787,-2348.87,0.00043013,2]
[354505200,1740541887796,-165.28864342,0.00043013,2]
[354505201,1740541887805,-1082.88,0.00043013,2]
[354505202,1740541887814,-1083.65,0.00043013,2]
[354505203,1740541887823,-1180.85,0.00043013,2]
[354505204,1740541887832,-588.21,0.00043013,2]
[354505205,1740541887842,-905.71,0.00043013,2]
[354505206,1740541887851,-522.98,0.00043013,2]
[354505207,1740541887861,-916.92,0.00043013,120]
[354505208,1740541887871,-594.42,0.00043013,2]
[354505209,1740541887881,-500.0,0.00043013,2]
[354505210,1740541887891,-940.15,0.00043013,2]
[354505211,1740541887900,-1845.61,0.00043013,2]
[354505212,1740541887909,-850.18,0.00043013,2]
[354505213,1740541887919,-566.29,0.00043013,2]
[354505214,1740541887928,-1025.57,0.00043013,2]
[354505215,1740541887937,-634.95,0.00043013,2]
[354505216,1740541887947,-1528.03,0.00043013,2]
[354505217,1740541887956,-666.28,0.00043013,2]
[354505218,1740541887965,-1167.0,0.00043013,2]
[354505219,1740541887974,-1631.72,0.00043013,2]
[354505220,1740541887983,-524.39,0.00043013,2]
[354505221,1740541887992,-500.0,0.00043013,2]
[354505222,1740541888001,-550.66,0.00043013,2]
[354505223,1740541888011,-776.92,0.00043013,2]
[354505224,1740541888020,-540.59,0.00043013,2]
[354505225,1740541888029,-1099.25,0.00043013,2]
[354505226,1740541888038,-531.21,0.00043013,2]
[354505227,1740541888047,-653.07,0.00043013,2]
[354505228,1740541888056,-248.26268642,0.00043013,2]
[354505229,1740541888065,-2325.51,0.00043013,2]
[354505230,1740541888074,-675.52,0.00043013,2]
[354505231,1740541888083,-1778.36,0.00043013,2]
[354505232,1740541888092,-325.06,0.00043013,2]
[354505233,1740541888102,-2484.09,0.00043013,2]
[354505234,1740541888111,-1225.49,0.00043013,2]
[354505235,1740541888120,-998.16,0.00043013,2]
[354505236,1740541888130,-2602.84,0.00043013,2]
[354505237,1740541888139,-565.19,0.00043013,2]
[354505238,1740541888148,-500.0,0.00043013,2]
[354505239,1740541888157,-2764.65,0.00043013,2]
[354505240,1740541888166,-1783.36,0.00043013,2]
[354505241,1740541888175,-6750.26,0.00043013,2]
[354505242,1740541888185,-500.0,0.00043013,2]
[354505243,1740541888194,-5267.08,0.00043013,2]
[354505244,1740541888204,-1830.68,0.00043013,2]
[354505245,1740541888214,-2033.02,0.00043013,2]
[354505246,1740541888223,-3800.0,0.00043013,120]
[354505247,1740541888232,-500.0,0.00043013,2]
[354505248,1740541888244,-8525.94,0.00043013,2]
[354505249,1740541888253,-167654.2,0.00043013,2]
[354505250,1740541888263,-2404.5,0.00043013,2]
[354505251,1740541888272,-595.31038851,0.00043013,2]
[354505252,1740541888282,-986.53,0.00043013,2]
[354505253,1740541888291,-18440.98,0.00043013,2]
[354505254,1740541888300,-527.39,0.00043013,2]
[354505255,1740541888309,-626.84,0.00043013,2]
[354505256,1740541888319,-2187.34,0.00043013,2]
[354505257,1740541888328,-2420.23,0.00043013,2]
[354505258,1740541888337,-3527.91,0.00043013,2]
[354505259,1740541888346,-500.0,0.00043013,2]
[354505260,1740541888355,-635.5,0.00043013,2]
[354505261,1740541888364,-1252.18,0.00043013,2]
[354505262,1740541888373,-1909.8,0.00043013,2]
[354505263,1740541888383,-1960.26,0.00043013,2]
[354505264,1740541888393,-1019.95,0.00043013,2]
[354505265,1740541888403,-3063.72,0.00043013,2]
[354505266,1740541888412,-1225.56,0.00043013,2]
[354505267,1740541888422,-775.34,0.00043013,2]
[354505268,1740541888431,-500.0,0.00043013,2]
[354505269,1740541888440,-1904.32,0.00043013,2]
[354505270,1740541888450,-573.2,0.00043013,2]
[354505271,1740541888459,-785.27,0.00043013,2]
[354505272,1740541888469,-1033.75,0.00043013,2]
[354505273,1740541888478,-637.72,0.00043013,2]
[354505274,1740541888486,-616.19,0.00043013,2]
[354505275,1740541888495,-2927.49,0.00043013,2]
[354505276,1740541888505,-14460.9,0.00043013,2]
[354505277,1740541888514,-1115.55,0.00043013,2]
[354505278,1740541888523,-1462.25,0.00043013,2]
[354505279,1740541888532,-571.33,0.00043013,2]
[354505280,1740541888541,-639.93,0.00043013,2]
[354505281,1740541888551,-743.61,0.00043013,2]
[354505282,1740541888560,-578.75,0.00043013,2]
[354505283,1740541888569,-2827.42,0.00043013,2]
[354505284,1740541888578,-5124.98,0.00043013,2]
[354505285,1740541888588,-500.0,0.00043013,2]
[354505286,1740541888597,-1239.32,0.00043013,2]
[354505287,1740541888606,-26314.25,0.00043013,2]
[354505288,1740541888616,-11193.35,0.00043013,2]
[354505289,1740541888625,-500.0,0.00043013,2]
[354505290,1740541888634,-4997.59,0.00043013,2]
[354505291,1740541888644,-1060.56,0.00043013,2]
[354505292,1740541888653,-500.0,0.00043013,2]
[354505293,1740541888663,-500.0,0.00043013,2]
[354505294,1740541888672,-500.0,0.00043013,2]
[354505295,1740541888682,-941.31,0.00043013,2]
[354505296,1740541888691,-17506.28,0.00043013,2]
[354505297,1740541888701,-2390.39,0.00043013,2]
[354505298,1740541888711,-3004.03,0.00043013,2]
[354505299,1740541888721,-469.55182445,0.00043013,2]
[354505300,1740541888731,-1782.91,0.00043013,2]
[354505301,1740541888745,-500.0,0.00043013,2]
[354505302,1740541888755,-1794.47,0.00043013,2]
[354505303,1740541888764,-623.66,0.00043013,2]
[354505304,1740541888775,-1392.27,0.00043013,2]
[354505305,1740541888784,-575.68,0.00043013,2]
[354505306,1740541888793,-534.28,0.00043013,2]
[354505307,1740541888803,-2753.33,0.00043013,2]
[354505308,1740541888813,-700.69,0.00043013,2]
[354505309,1740541888823,-5602.35,0.00043013,2]
[354505310,1740541888833,-785.44,0.00043013,2]
[354505311,1740541888843,-552.46,0.00043013,2]
[354505312,1740541888852,-500.0,0.00043013,2]
[354505313,1740541888862,-734.87,0.00043013,2]
[354505314,1740541888871,-3053.22,0.00043013,2]
[354505315,1740541888881,-1081.35,0.00043013,2]
[354505316,1740541888891,-3762.21,0.00043013,2]
[354505317,1740541888900,-13178.26,0.00043013,2]
[354505318,1740541888910,-258.96672298,0.00043013,2]
[354505319,1740541888919,-843.19,0.00043013,2]
[354505320,1740541888928,-1787.91,0.00043013,2]
[354505321,1740541888938,-500.0,0.00043013,2]
[354505322,1740541888947,-834.45,0.00043013,2]
[354505323,1740541888956,-5245.51,0.00043013,2]
[354505324,1740541888966,-500.0,0.00043013,2]
[354505325,1740541888976,-1168.34,0.00043013,2]
[354505326,1740541888985,-8391.51,0.00043013,2]
[354505327,1740541888995,-1193.47,0.00043013,2]
[354505328,1740541889004,-9125.91,0.00043013,2]
[354505329,1740541889014,-857.27,0.00043013,2]
[354505330,1740541889023,-500.0,0.00043013,2]
[354505331,1740541889033,-500.0,0.00043013,2]
[354505332,1740541889043,-300.0,0.00043013,120]
[354505333,1740541889052,-5628.63,0.00043013,2]
[354505334,1740541889062,-926.06,0.00043013,2]
[354505335,1740541889071,-548.16,0.00043287,2]
[354505336,1740541889081,-611.99,0.00043287,2]
[354505337,1740541889090,-890.56,0.00043287,2]
[354505338,1740541889100,-990.32,0.00043287,2]
[354505339,1740541889109,-500.0,0.00043287,2]
[354505340,1740541889118,-789.78,0.00043287,2]
[354505341,1740541889128,-500.0,0.00043287,2]
[354505342,1740541889138,-1500.75,0.00043287,2]
[354505343,1740541889147,-500.0,0.00043287,2]
[354505344,1740541889157,-524.67,0.00043287,2]
[354505345,1740541889166,-500.0,0.00043287,2]
[354505346,1740541889176,-500.0,0.00043287,2]
[354505347,1740541889185,-645.84,0.00043287,2]
[354505348,1740541889195,-667.29,0.00043287,2]
[354505349,1740541889204,-697.46,0.00043287,2]
[354505350,1740541889214,-551.75,0.00043287,2]
[354505351,1740541889223,-611.81,0.00043287,2]
[354505352,1740541889233,-500.0,0.00043287,2]
[354505353,1740541889243,-240.87634783,0.00043287,2]
[354505354,1740541889253,-1093.44,0.00043287,2]
[354505355,1740541889262,-655.21,0.00043287,2]
[354505356,1740541889272,-500.0,0.00043287,2]
[354505357,1740541889282,-500.0,0.00043287,2]
[354505358,1740541889291,-1093.29,0.00043287,2]
[354505359,1740541889301,-1270.97,0.00043287,2]
[354505360,1740541889311,-639.54,0.00043287,2]
[354505361,1740541889321,-1985.84,0.00043287,2]
[354505362,1740541889331,-553.98,0.00043287,2]
[354505363,1740541889340,-1474.78,0.00043287,2]
[354505364,1740541889350,-2148.66,0.00043287,2]
[354505365,1740541889359,-500.0,0.00043287,2]
[354505366,1740541889369,-1062.96,0.00043287,2]
[354505367,1740541889379,-1566.7,0.00043287,2]
[354505368,1740541889388,-2271.73,0.00043287,2]
[354505369,1740541889399,-910.04,0.00043287,2]
[354505370,1740541889408,-808.12,0.00043287,2]
[354505371,1740541889418,-660.19,0.00043287,2]
[354505372,1740541889428,-1062.27,0.00043287,2]
[354505373,1740541889438,-761.72,0.00043287,2]
[354505374,1740541889448,-587.82,0.00043287,2]
[354505375,1740541889458,-2348.87,0.00043287,2]
[354505376,1740541889468,-1082.88,0.00043287,2]
[354505377,1740541889477,-1083.65,0.00043287,2]
[354505378,1740541889487,-1180.85,0.00043287,2]
[354505379,1740541889497,-588.21,0.00043287,2]
[354505380,1740541889506,-905.71,0.00043287,2]
[354505381,1740541889516,-522.98,0.00043287,2]
[354505382,1740541889525,-916.92,0.00043287,120]
[354505383,1740541889535,-594.42,0.00043287,2]
[354505384,1740541889545,-500.0,0.00043287,2]
[354505385,1740541889555,-940.15,0.00043287,2]
[354505386,1740541889564,-1845.61,0.00043287,2]
[354505387,1740541889574,-850.18,0.00043287,2]
[354505388,1740541889584,-566.29,0.00043287,2]
[354505389,1740541889594,-1025.57,0.00043287,2]
[354505390,1740541889603,-634.95,0.00043287,2]
[354505391,1740541889612,-1528.03,0.00043287,2]
[354505392,1740541889622,-1167.0,0.00043287,2]
[354505393,1740541889632,-666.28,0.00043287,2]
[354505394,1740541889641,-1631.72,0.00043287,2]
[354505395,1740541889650,-524.39,0.00043287,2]
[354505396,1740541889660,-304.78011541,0.00043287,2]
[354505397,1740541889671,-550.66,0.00043287,2]
[354505398,1740541889680,-776.92,0.00043287,2]
[354505399,1740541889690,-540.59,0.00043287,2]
[354505400,1740541889700,-1099.25,0.00043287,2]
[354505401,1740541889709,-531.21,0.00043287,2]
[354505402,1740541889719,-653.07,0.00043287,2]
[354505403,1740541889728,-2325.51,0.00043287,2]
[354505404,1740541889740,-675.52,0.00043287,2]
[354505405,1740541889751,-1778.36,0.00043287,2]
[354505406,1740541889760,-2484.09,0.00043287,2]
[354505407,1740541889770,-1225.49,0.00043287,2]
[354505408,1740541889781,-998.16,0.00043287,2]
[354505409,1740541889791,-2602.84,0.00043287,2]
[354505410,1740541889801,-565.19,0.00043287,2]
[354505411,1740541889811,-2764.65,0.00043287,2]
[354505412,1740541889822,-1783.36,0.00043287,2]
[354505413,1740541889833,-6750.26,0.00043287,2]
[354505414,1740541889843,-500.0,0.00043287,2]
[354505415,1740541889853,-5267.08,0.00043287,2]
[354505416,1740541889868,-1830.68,0.00043287,2]
[354505417,1740541889880,-2033.02,0.00043287,2]
[354505418,1740541889889,-3800.0,0.00043287,120]
[354505419,1740541889899,-500.0,0.00043287,2]
[354505420,1740541889909,-8525.94,0.00043287,2]
[354505421,1740541889918,-167654.2,0.00043287,2]
[354505422,1740541889928,-2404.5,0.00043287,2]
[354505423,1740541889938,-986.53,0.00043287,2]
[354505424,1740541889948,-18440.98,0.00043287,2]
[354505425,1740541889957,-527.39,0.00043287,2]
[354505426,1740541889967,-626.84,0.00043287,2]
[354505427,1740541889977,-2187.34,0.00043287,2]
[354505428,1740541889987,-2420.23,0.00043287,2]
[354505429,1740541889996,-3527.91,0.00043287,2]
[354505430,1740541890005,-394.68122712,0.00043287,2]
[354505431,1740541890015,-635.5,0.00043287,2]
[354505432,1740541890025,-1252.18,0.00043287,2]
[354505433,1740541890034,-1909.8,0.00043287,2]
[354505434,1740541890044,-1960.26,0.00043287,2]
[354505435,1740541890054,-1019.95,0.00043287,2]
[354505436,1740541890064,-3063.72,0.00043287,2]
[354505437,1740541890074,-1225.56,0.00043287,2]
[354505438,1740541890083,-775.34,0.00043287,2]
[354505439,1740541890093,-577.27047219,0.00043287,2]
[354505440,1740541890103,-1904.32,0.00043287,2]
[354505441,1740541890113,-573.2,0.00043287,2]
[354505442,1740541890123,-785.27,0.00043287,2]
[354505443,1740541890133,-1033.75,0.00043287,2]
[354505444,1740541890142,-637.72,0.00043287,2]
[354505445,1740541890152,-616.19,0.00043287,2]
[354505446,1740541890162,-2927.49,0.00043287,2]
[354505447,1740541890172,-14460.9,0.00043287,2]
[354505448,1740541890182,-1115.55,0.00043287,2]
[354505449,1740541890192,-1462.25,0.00043287,2]
[354505450,1740541890202,-571.33,0.00043287,2]
[354505451,1740541890212,-639.93,0.00043287,2]
[354505452,1740541890222,-743.61,0.00043287,2]
[354505453,1740541890232,-578.75,0.00043287,2]
[354505454,1740541890242,-2827.42,0.00043287,2]
[354505455,1740541890252,-5124.98,0.00043287,2]
[354505456,1740541890262,-500.0,0.00043287,2]
[354505457,1740541890272,-1239.32,0.00043287,2]
[354505458,1740541890282,-975.07308164,0.00043287,2]
[354505460,1740542253686,500.0,0.00025,30]
[354505466,1740542477807,-3500.0,0.00025,30]
[354505483,1740543032540,-161.41394832,0.000199,2]
[354505484,1740543032550,-300.0,0.00019999,2]
[354505485,1740543032560,-1450.0,0.0002,3]
[354505486,1740543032570,-1450.0,0.0002,3]
[354505487,1740543032579,-1450.0,0.0002,3]
[354505488,1740543032588,-1450.0,0.0002,3]
[354505489,1740543032598,-420.0,0.00021777,2]
[354505490,1740543032608,-587.0,0.00023712,2]
[354505491,1740543032618,-381.80904951,0.00024,30]
[354505492,1740543032629,-6183.57984053,0.00025,30]
[354505493,1740543032641,-416.42015947,0.00025,30]
[354505494,1740543032650,-6461.59156562,0.000254,2]
[354505495,1740543032662,-387.21973028,0.000254,2]
[354505496,1740543032671,-673.0,0.0002582,2]
[354505497,1740543032680,-476.47494583,0.00025947,2]
[354505498,1740543032690,-466.09891766,0.00025984,2]
[354505499,1740543032699,-2777.59061668,0.00027846,2]
[354505500,1740543032710,-753.9980548,0.00027846,2]
[354505501,1740543032726,-2588.43881664,0.00027846,2]
[354505503,1740543032737,-429.14,0.00027846,2]
[354505505,1740543032749,-13054.70942667,0.00027846,2]
[354505507,1740543032757,-158.46727299,0.00032307,2]
[354505509,1740543032767,-24900.0,0.00032407,2]
[354505511,1740543032776,-5236.30422258,0.00033418,40]
[354505513,1740543032785,-5000.0,0.00033418,40]
[354505515,1740543032794,-5000.0,0.00033418,42]
[354505517,1740543032804,-5000.0,0.00033418,44]
[354505519,1740543032813,-5000.0,0.00033418,44]
[354505521,1740543032822,-2421.13406356,0.00037358,2]
[354505522,1740543032831,-154.855,0.00037588,49]
[354505523,1740543032841,-1161.95525673,0.00038256,2]
[354505524,1740543032850,-160.0,0.00038316,3]
[354505525,1740543032859,-692.97,0.00038336,3]
[354505526,1740543032868,-346.48,0.00038336,3]
[354505527,1740543032879,-173.24,0.00038336,3]
[354505528,1740543032888,-519.77,0.00038336,3]
[354505529,1740543032898,-11462.44760311,0.00038346,3]
[354505530,1740543032909,-20360.55277405,0.00038346,3]
[354505531,1740543032920,-953.7851039,0.00038346,3]
[354505532,1740543032932,-310.03899571,0.00038346,3]
[354505533,1740543032943,-699.79020707,0.00038346,3]
[354505534,1740543032955,-1336.53056753,0.00038346,3]
[354505555,1740543038396,-174.53857427,0.00038256,2]
[354505557,1740543038406,-241.81273273,0.00038346,3]
[354505563,1740543038448,-566.72796838,0.00038346,3]
[354505565,1740543038459,-3127.57903725,0.00038346,3]
[354505570,1740543038503,-12856.67777327,0.00038346,3]
[354505573,1740543038512,-3618.77861375,0.00038346,3]
[354505575,1740543038521,-605.35171699,0.00038355,15]
[354505577,1740543038531,-500.0,0.00038355,15]
[354505579,1740543038540,-500.0,0.00038355,15]
[354505581,1740543038549,-500.0,0.00038355,15]
[354505583,1740543038558,-500.0,0.00038355,15]
[354505585,1740543038567,-291.0347564,0.00038355,15]
[354505587,1740543038576,-500.0,0.00038355,15]
[354505589,1740543038585,-500.0,0.00038355,15]
[354505591,1740543038595,-578.25762151,0.00038355,15]
[354505593,1740543038604,-500.0,0.00038355,15]
[354505595,1740543038613,-500.0,0.00038355,2]
[354505597,1740543038623,-329.94269331,0.00038355,15]
[354505599,1740543038633,-500.0,0.00038355,15]
[354505601,1740543038642,-500.0,0.00038355,15]
[354505603,1740543038651,-500.0,0.00038355,2]
[354505605,1740543038660,-200.70280284,0.00038355,2]
[354505607,1740543038670,-500.0,0.00038355,15]
[354505609,1740543038679,-500.0,0.00038355,2]
[354505611,1740543038688,-500.0,0.00038355,15]
[354505613,1740543038697,-253.83340625,0.00038355,15]
[354505615,1740543038706,-197.46096505,0.00038355,15]
[354505779,1740543040537,-12.68377062,0.00038355,15]
[354505781,1740543040546,-500.0,0.00038356,2]
[354505783,1740543040555,-500.0,0.00038356,2]
[354505785,1740543040564,-500.0,0.00038356,2]
[354505787,1740543040574,-500.0,0.00038356,2]
[354505789,1740543040583,-500.0,0.00038356,2]
[354505791,1740543040592,-500.0,0.00038356,2]
[354505793,1740543040602,-500.0,0.00038356,2]
[354505795,1740543040611,-500.0,0.00038356,2]
[354505797,1740543040620,-500.0,0.00038356,120]
[354505799,1740543040630,-500.0,0.00038356,2]
[354505801,1740543040639,-500.0,0.00038356,2]
[354505804,1740543040648,-501.50611332,0.00038356,2]
[354505807,1740543040658,-502.76353168,0.00038356,2]
[354505809,1740543040667,-500.0,0.00038356,2]
[354505811,1740543040676,-502.46008,0.00038356,2]
[354505814,1740543040693,-500.0,0.00038356,2]
[354505817,1740543040705,-500.0,0.00038356,2]
[354505819,1740543040714,-500.0,0.00038356,2]
[354505821,1740543040723,-500.0,0.00038356,2]
[354505823,1740543040733,-500.0,0.00038356,2]
[354505825,1740543040742,-500.0,0.00038356,2]
[354505827,1740543040751,-500.0,0.00038356,2]
[354505829,1740543040760,-564.0900644,0.00038356,2]
[354505831,1740543040770,-500.0,0.00038356,2]
[354505833,1740543040779,-514.94,0.00038356,2]
[354505835,1740543040788,-162.69977594,0.00038356,2]
[354505837,1740543040798,-506.36729509,0.00038356,2]
[354505839,1740543040808,-500.0,0.00038356,2]
[354505841,1740543040817,-500.0,0.00038356,2]
[354505843,1740543040826,-500.0,0.00038356,2]
[354505845,1740543040836,-310.75163475,0.00038356,2]
[354505847,1740543040845,-500.0,0.00038356,2]
[354505849,1740543040854,-500.0,0.00038356,2]
[354505851,1740543040863,-500.0,0.00038356,2]
[354505853,1740543040873,-500.0,0.00038356,2]
[354505855,1740543040883,-500.0,0.00038356,2]
[354505857,1740543040892,-500.0,0.00038356,2]
[354505859,1740543040901,-500.0,0.00038356,2]
[354505861,1740543040911,-500.0,0.00038356,2]
[354505863,1740543040920,-500.0,0.00038356,2]
[354505865,1740543040929,-500.0,0.00038356,2]
[354505867,1740543040938,-500.0,0.00038356,2]
[354505869,1740543040948,-500.0,0.00038356,2]
[354505871,1740543040958,-500.9360455,0.00038356,2]
[354505873,1740543040968,-500.0,0.00038356,2]
[354505875,1740543040976,-510.58,0.00038356,2]
[354505877,1740543040986,-500.0,0.00038356,2]
[354505879,1740543040995,-500.0,0.00038356,2]
[354505881,1740543041004,-500.0,0.00038356,2]
[354505883,1740543041013,-500.0,0.00038356,2]
[354505885,1740543041022,-500.0,0.00038356,2]
[354505887,1740543041032,-669.58,0.00038356,2]
[354505889,1740543041041,-500.0,0.00038356,2]
[354505891,1740543041051,-500.0,0.00038356,2]
[354505893,1740543041060,-500.0,0.00038356,2]
[354505895,1740543041069,-500.0,0.00038356,2]
[354505898,1740543041079,-500.0,0.00038356,2]
[354505900,1740543041088,-500.0,0.00038356,2]
[354505901,1740543041098,-500.0,0.00038356,2]
[354505903,1740543041107,-500.0,0.00038356,2]
[354505905,1740543041120,-500.0,0.00038356,2]
[354505908,1740543041131,-500.0,0.00038356,2]
[354505910,1740543041141,-500.0,0.00038356,2]
[354505912,1740543041151,-500.0,0.00038356,2]
[354505914,1740543041160,-503.17478124,0.00038356,2]
[354505915,1740543041170,-439.70180176,0.00038356,2]
[354505918,1740543041179,-526.15,0.00038356,2]
[354505920,1740543041190,-500.0,0.00038356,2]
[354505922,1740543041199,-503.06367834,0.00038356,2]
[354505924,1740543041208,-500.0,0.00038356,2]
[354505926,1740543041218,-500.0,0.00038356,2]
[354505928,1740543041227,-500.0,0.00038356,2]
[354505930,1740543041236,-500.0,0.00038356,2]
[354505932,1740543041245,-500.0,0.00038356,2]
[354505934,1740543041254,-500.0,0.00038356,2]
[354505936,1740543041263,-559.19,0.00038356,2]
[354505938,1740543041272,-536.97,0.00038356,2]
[354505940,1740543041281,-500.83565872,0.00038356,2]
[354505942,1740543041291,-500.0,0.00038356,2]
[354505944,1740543041300,-500.0,0.00038356,2]
[354505946,1740543041309,-1000.0,0.00038356,2]
[354505948,1740543041319,-509.87995406,0.00038356,2]
[354505950,1740543041328,-646.43,0.00038356,2]
[354505952,1740543041337,-500.0,0.00038356,2]
[354505954,1740543041346,-500.0,0.00038356,2]
[354505956,1740543041357,-579.77218934,0.00038356,2]
[354505958,1740543041366,-504.14693971,0.00038356,2]
[354505960,1740543041375,-146.19446714,0.00038356,2]
[354505962,1740543041390,-354.36301459,0.00038356,2]
[354505965,1740543041400,-189.2222222,0.00038356,2]
[354505967,1740543041409,-500.0,0.00038356,2]
[354505969,1740543041418,-500.0,0.00038356,2]
[354505971,1740543041428,-500.0,0.00038356,2]
[354505973,1740543041437,-500.0,0.00038356,2]
[354505975,1740543041446,-508.49539369,0.00038356,2]
[354505977,1740543041455,-500.0,0.00038356,2]
[354505978,1740543041464,-500.0,0.00038356,2]
[354505981,1740543041474,-502.9211928,0.00038356,2]
[354505983,1740543041483,-300.0,0.00038356,120]
[354505985,1740543041492,-500.0,0.00038356,2]
[354505987,1740543041502,-500.0,0.00038356,2]
[354505989,1740543041512,-500.0,0.00038356,2]
[354505991,1740543041525,-500.0,0.00038356,2]
[354505993,1740543041535,-500.0,0.00038356,2]
[354505995,1740543041545,-500.0,0.00038356,2]
[354505998,1740543041556,-500.0,0.00038356,2]
[354506000,1740543041566,-53.42346151,0.00038356,2]
[354506005,1740543041605,-446.57653849,0.00038356,2]
[354506007,1740543041615,-500.0,0.00038356,2]
[354506009,1740543041626,-500.0,0.00038356,2]
[354506011,1740543041639,-500.0,0.00038356,2]
[354506013,1740543041649,-500.0,0.00038356,2]
[354506015,1740543041659,-500.0,0.00038356,2]
[354506017,1740543041669,-500.0,0.00038356,2]
[354506019,1740543041679,-500.0,0.00038356,2]
[354506021,1740543041690,-526.75317591,0.00038356,2]
[354506023,1740543041700,-500.40353287,0.00038356,2]
[354506025,1740543041710,-500.0,0.00038356,2]
[354506028,1740543041720,-500.0,0.00038356,2]
[354506030,1740543041731,-500.25811192,0.00038356,2]
[354506032,1740543041742,-500.0,0.00038356,2]
[354506034,1740543041751,-501.35412303,0.00038356,2]
[354506036,1740543041761,-500.0,0.00038356,2]
[354506038,1740543041771,-500.0,0.00038356,2]
[354506040,1740543041781,-465.53230207,0.00038356,2]
[354506042,1740543041791,-500.0,0.00038356,2]
[354506044,1740543041800,-500.0,0.00038356,2]
[354506046,1740543041810,-500.0,0.00038356,2]
[354506048,1740543041820,-500.0,0.00038356,2]
[354506050,1740543041830,-502.02042844,0.00038356,2]
[354506052,1740543041840,-500.0,0.00038356,2]
[354506055,1740543041850,-690.39,0.00038356,2]
[354506057,1740543041859,-500.0,0.00038356,2]
[354506059,1740543041870,-500.0,0.00038356,2]
[354506061,1740543041880,-505.30905327,0.00038356,2]
[354506063,1740543041892,-500.0,0.00038356,2]
[354506065,1740543041902,-500.0,0.00038356,2]
[354506067,1740543041912,-1139.89,0.00038356,2]
[354506069,1740543041922,-500.0,0.00038356,2]
[354506071,1740543041932,-500.0,0.00038356,2]
[354506073,1740543041942,-500.0,0.00038356,2]
[354506075,1740543041952,-500.0,0.00038356,2]
[354506077,1740543041962,-500.0,0.00038356,2]
[354506079,1740543041972,-500.0,0.00038356,2]
[354506082,1740543041982,-500.0,0.00038356,2]
[354506084,1740543041992,-500.0,0.00038356,2]
[354506086,1740543042002,-500.0,0.00038356,2]
[354506088,1740543042011,-500.0,0.00038356,2]
[354506090,1740543042021,-500.0,0.00038356,2]
[354506092,1740543042031,-500.0,0.00038356,2]
[354506094,1740543042041,-500.0,0.00038356,2]
[354506096,1740543042050,-500.52759193,0.00038356,2]
[354506098,1740543042061,-521.18976712,0.00038356,2]
[354506100,1740543042071,-502.94212244,0.00038356,2]
[354506102,1740543042080,-500.0,0.00038356,2]
[354506104,1740543042090,-501.14345234,0.00038356,2]
[354506106,1740543042100,-512.43,0.00038356,2]
[354506108,1740543042114,-500.0,0.00038356,2]
[354506111,1740543042126,-500.0,0.00038356,2]
[354506113,1740543042137,-500.0,0.00038356,2]
[354506115,1740543042147,-500.0,0.00038356,2]
[354506117,1740543042158,-501.70248269,0.00038356,2]
[354506119,1740543042168,-500.0,0.00038356,2]